bitfinex/quotes_BTCUSD_20240617
["timestamp","ask_amount","ask_price","bid_price","bid_amount"]
[1718659421564,0.00854,66651.0,66650.0,0.03137482]
[1718659421765,0.00854,66651.0,66650.0,0.03237482]
[1718659422631,0.00854,66651.0,66650.0,0.02837482]
[1718659423032,0.00854,66651.0,66650.0,0.03137482]
[1718659423206,0.00854,66651.0,66650.0,0.25097482]
[1718659423609,0.00854,66651.0,66650.0,0.24797482]
[1718659424443,0.00854,66651.0,66650.0,0.25097482]
[1718659424643,0.00854,66651.0,66650.0,0.25197482]
[1718659424848,0.00854,66651.0,66650.0,0.25097482]
[1718659425282,0.00854,66651.0,66650.0,0.25197482]
[1718659425689,0.00854,66651.0,66650.0,0.25097482]
[1718659426100,0.00854,66651.0,66650.0,0.25197482]
[1718659426474,0.00854,66651.0,66650.0,0.01302658]
[1718659426779,0.758715,66651.0,66650.0,0.01302658]
[1718659426983,0.858715,66651.0,66650.0,0.003]
[1718659427802,0.858715,66651.0,66650.0,0.006]
[1718659428219,0.858715,66651.0,66650.0,0.003]
[1718659429497,0.858715,66651.0,66650.0,0.006]
[1718659430080,0.858715,66651.0,66650.0,0.003]
[1718659431687,0.858715,66651.0,66650.0,0.007]
[1718659432706,0.858715,66651.0,66650.0,0.1308]
[1718659433834,0.858715,66651.0,66650.0,0.2303]
[1718659436075,0.858715,66651.0,66650.0,0.1308]
[1718659436280,0.858715,66651.0,66650.0,0.007]
[1718659437965,0.558645,66651.0,66650.0,0.007]
[1718659438376,0.558645,66651.0,66650.0,0.01702838]
[1718659438783,0.558645,66651.0,66650.0,0.007]
[1718659439639,0.558645,66651.0,66650.0,0.02534824]
[1718659440249,0.558645,66651.0,66650.0,0.007]
[1718659440385,0.10854,66651.0,66650.0,0.02534824]
[1718659440569,0.10854,66651.0,66650.0,0.03537662]
[1718659441745,0.00854,66651.0,66650.0,0.03537662]
[1718659441966,0.00849,66651.0,66650.0,0.03537662]
[1718659444364,0.300048,66656.0,66652.0,0.01834824]
[1718659444567,0.150029,66654.0,66651.0,0.01834824]
[1718659444969,0.150029,66654.0,66652.0,0.01002486]
[1718659445392,0.150029,66654.0,66652.0,0.0283731]
[1718659445692,0.150029,66654.0,66653.0,0.1174]
[1718659445889,0.150029,66654.0,66653.0,0.1274248]
[1718659446089,0.151029,66654.0,66653.0,0.1274248]
[1718659446315,0.2059749,66654.0,66653.0,0.1274248]
[1718659446527,0.4080676,66654.0,66653.0,0.1274248]
[1718659446728,0.4090676,66654.0,66653.0,0.1274248]
[1718659447114,0.5590956,66654.0,66653.0,0.1274248]
[1718659447332,0.5590956,66654.0,66653.0,0.14577304]
[1718659447535,0.5590956,66654.0,66653.0,0.1274248]
[1718659448091,0.5590956,66654.0,66653.0,0.14577304]
[1718659448302,0.4090676,66654.0,66653.0,0.14577304]
[1718659448710,0.4080676,66654.0,66653.0,0.14577304]
[1718659449118,0.4090676,66654.0,66653.0,0.14577304]
[1718659449740,0.41312126,66654.0,66653.0,0.14577304]
[1718659450137,0.41312126,66654.0,66653.0,0.24027304]
[1718659450344,0.41314342,66654.0,66653.0,0.24027304]
[1718659451616,0.41314342,66654.0,66653.0,0.2219248]
[1718659451819,0.41359195,66654.0,66653.0,0.2219248]
[1718659454194,0.41359195,66654.0,66653.0,0.24027304]
[1718659455038,0.41359195,66654.0,66653.0,0.2219248]
[1718659455476,0.41359195,66654.0,66653.0,0.24027304]
[1718659457001,0.41359195,66654.0,66653.0,0.2219248]
[1718659457251,0.41359195,66654.0,66653.0,0.24027304]
[1718659457967,0.4143398,66654.0,66653.0,0.24027304]
[1718659458457,0.4143398,66654.0,66653.0,0.24777304]
[1718659458670,0.3531217,66654.0,66653.0,0.24777304]
[1718659459125,0.101,66654.0,66653.0,0.24777304]
[1718659459323,0.001,66654.0,66653.0,0.24777304]
[1718659465327,0.001,66654.0,66653.0,0.39780304]
[1718659466111,0.001,66654.0,66653.0,0.69786404]
[1718659467100,0.001,66654.0,66653.0,0.85059292]
[1718659467256,0.001,66654.0,66653.0,1.24645392]
[1718659468707,0.0133075,66657.0,66656.0,0.680672]
[1718659468861,0.0133075,66657.0,66656.0,0.766472]
[1718659469062,0.0133075,66657.0,66656.0,0.77650656]
[1718659469355,0.0133075,66657.0,66656.0,0.7848548]
[1718659469772,0.0133075,66657.0,66656.0,0.94758368]
[1718659469995,0.0133075,66657.0,66656.0,1.54767968]
[1718659470197,0.0133075,66657.0,66656.0,1.55767968]
[1718659470569,0.0133075,66657.0,66656.0,1.68220341]
[1718659471114,0.0133075,66657.0,66656.0,1.69320341]
[1718659471320,0.0133075,66657.0,66656.0,1.56867968]
[1718659474752,0.0133075,66657.0,66656.0,1.54767968]
[1718659475126,0.0133075,66657.0,66656.0,1.57567968]
[1718659476297,0.0131575,66657.0,66656.0,1.67762139]
[1718659476445,0.0131575,66657.0,66656.0,1.57567968]
[1718659477232,0.0131575,66657.0,66656.0,2.51762139]
[1718659477436,0.0131575,66657.0,66656.0,1.67762139]
[1718659477638,0.0131575,66657.0,66656.0,1.57567968]
[1718659479580,0.0140075,66657.0,66656.0,1.57567968]
[1718659479775,0.0140075,66657.0,66656.0,1.67762139]
[1718659480933,0.0140075,66657.0,66656.0,2.89218682]
[1718659481168,0.0140075,66657.0,66656.0,3.08028682]
[1718659481317,0.0140075,66657.0,66656.0,2.31028682]
[1718659481534,0.0140075,66657.0,66656.0,3.16500081]
[1718659481906,0.0140075,66657.0,66656.0,3.13694695]
[1718659482107,0.0140075,66657.0,66656.0,3.15094695]
[1718659482383,0.0140075,66657.0,66656.0,3.12027943]
[1718659482512,0.0140075,66657.0,66656.0,3.10627943]
[1718659482952,0.0140075,66657.0,66656.0,3.12027943]
[1718659483565,0.0140075,66657.0,66656.0,2.31027943]
[1718659483905,0.0140075,66657.0,66656.0,2.29627943]
[1718659484042,0.0140075,66657.0,66656.0,3.05027943]
[1718659484244,0.0140075,66657.0,66656.0,3.03627943]
[1718659484663,0.0140075,66657.0,66656.0,3.05027943]
[1718659487355,0.0140075,66657.0,66656.0,3.04027943]
[1718659487586,0.03182469,66674.0,66656.0,3.04027943]
[1718659487587,0.1,66679.0,66673.0,0.149985]
[1718659487777,0.1,66679.0,66674.0,0.15272888]
[1718659488102,0.1,66679.0,66678.0,0.00834824]
[1718659488445,0.2301,66679.0,66678.0,0.00834824]
[1718659488651,0.2301,66679.0,66678.0,0.01830899]
[1718659488856,0.2301,66679.0,66678.0,0.00834824]
[1718659489062,0.2301,66679.0,66678.0,0.01830899]
[1718659489266,0.1301,66679.0,66678.0,0.00834824]
[1718659489520,0.1301,66679.0,66678.0,0.01830899]
[1718659489723,0.280072,66679.0,66678.0,0.00834824]
[1718659489923,0.280072,66679.0,66678.0,0.01234824]
[1718659490251,0.380072,66679.0,66678.0,0.02230899]
[1718659491950,0.380072,66679.0,66678.0,0.02730899]
[1718659492183,0.149949,66689.0,66688.0,0.00834824]
[1718659492391,0.81048286,66689.0,66688.0,0.00834824]
[1718659492600,0.81048286,66689.0,66687.0,0.00834824]
[1718659492601,0.299904,66688.0,66687.0,0.00834824]
[1718659492816,0.149954,66687.0,66686.0,0.00834824]
[1718659493017,0.449862,66687.0,66686.0,0.00834824]
[1718659493245,0.449862,66687.0,66686.0,0.01829533]
[1718659493446,0.449862,66687.0,66684.0,0.00834824]
[1718659493447,0.401908,66687.0,66684.0,0.00834824]
[1718659493647,0.102,66687.0,66686.0,0.00994709]
[1718659493847,0.202,66687.0,66686.0,0.00834824]
[1718659494069,0.351954,66687.0,66686.0,0.00834824]
[1718659494273,0.202,66687.0,66686.0,0.00834824]
[1718659494403,0.202,66687.0,66686.0,0.01829533]
[1718659494608,0.651862,66687.0,66686.0,0.00834824]
[1718659495169,0.202,66687.0,66686.0,0.00834824]
[1718659496079,0.202,66687.0,66686.0,0.01829533]
[1718659497238,0.202,66687.0,66686.0,0.16825133]
[1718659497451,0.202,66687.0,66686.0,0.01829533]
[1718659498231,0.351954,66687.0,66686.0,0.01829533]
[1718659498827,0.202,66687.0,66686.0,0.01929533]
[1718659499268,0.351954,66687.0,66686.0,0.01094709]
[1718659499483,0.351954,66687.0,66686.0,0.01929533]
[1718659499801,0.351954,66687.0,66686.0,0.00934824]
[1718659500626,0.351954,66687.0,66686.0,0.001]
[1718659500858,0.651862,66687.0,66686.0,0.001]
[1718659501077,1.71408966,66687.0,66686.0,0.001]
[1718659501272,1.47452239,66687.0,66686.0,0.001]
[1718659502433,1.47452239,66687.0,66678.0,0.00834824]
[1718659502434,0.149969,66681.0,66678.0,0.00834824]
[1718659502644,0.3242,66680.0,66678.0,0.16107712]
[1718659502840,0.47417,66680.0,66679.0,0.00992029]
[1718659503605,0.77411,66680.0,66679.0,0.00992029]
[1718659504619,1.07405,66680.0,66679.0,0.00992029]
[1718659505000,0.74986,66679.0,66678.0,0.009]
[1718659505208,0.84986,66679.0,66678.0,0.01734824]
[1718659505413,0.84986,66679.0,66678.0,0.02726859]
[1718659505611,0.84986,66679.0,66678.0,0.00834824]
[1718659506647,0.84986,66679.0,66678.0,0.01834824]
[1718659506886,0.84986,66679.0,66678.0,0.02934824]
[1718659507347,0.84986,66679.0,66678.0,0.021]
[1718659507758,1.11939184,66679.0,66678.0,0.021]
[1718659508164,0.2219,66685.0,66678.0,0.02934824]
[1718659508309,0.0025,66686.0,66682.0,0.00834824]
[1718659508310,0.33376324,66684.0,66682.0,0.00834824]
[1718659508520,0.1,66683.0,66682.0,0.00834824]
[1718659509533,0.1,66684.0,66682.0,0.00834824]
[1718659509733,0.249961,66684.0,66683.0,0.00834824]
[1718659509927,0.1,66684.0,66683.0,0.00834824]
[1718659510111,0.152456,66686.0,66685.0,0.00834824]
[1718659510466,0.149958,66685.0,66684.0,0.00834824]
[1718659510592,0.249958,66685.0,66684.0,0.00834824]
[1718659511245,0.51951014,66685.0,66684.0,0.00834824]
[1718659511456,0.149972,66680.0,66678.0,0.16107712]
[1718659511657,0.249972,66679.0,66678.0,0.16107712]
[1718659511865,0.1,66679.0,66678.0,0.16107712]
[1718659512311,0.1,66679.0,66678.0,0.16201212]
[1718659512544,0.249972,66679.0,66678.0,0.16201212]
[1718659512916,0.249972,66679.0,66678.0,0.17501212]
[1718659513119,0.249972,66679.0,66678.0,0.16201212]
[1718659513460,0.249972,66679.0,66678.0,0.17501212]
[1718659513889,0.252472,66679.0,66678.0,0.17501212]
[1718659514459,0.252472,66679.0,66678.0,0.18901212]
[1718659515641,0.252472,66679.0,66678.0,0.027935]
[1718659515842,1.476304,66679.0,66678.0,0.027935]
[1718659516073,2.54736747,66679.0,66678.0,0.027935]
[1718659516275,2.10800098,66679.0,66678.0,0.027935]
[1718659516827,2.40794498,66679.0,66678.0,0.027935]
[1718659517060,2.40794498,66679.0,66678.0,0.013935]
[1718659517503,2.50794498,66679.0,66678.0,0.021935]
[1718659517669,2.40794498,66679.0,66678.0,0.021935]
[1718659517880,2.40794498,66679.0,66655.0,0.7961]
[1718659517881,0.08,66664.0,66650.0,0.0670756]
[1718659518070,0.08,66664.0,66638.0,0.5218003]
[1718659518071,1.537856,66654.0,66638.0,0.5218003]
[1718659518246,1.537856,66654.0,66638.0,0.47708324]
[1718659518499,1.9534798,66654.0,66638.0,0.47708324]
[1718659518668,2.09841187,66654.0,66638.0,0.468735]
[1718659518871,1.050434,66639.0,66638.0,0.000935]
[1718659519095,1.775558,66639.0,66638.0,0.000935]
[1718659519252,1.465434,66639.0,66638.0,0.000935]
[1718659519451,1.475434,66639.0,66638.0,0.000935]
[1718659520476,1.475434,66639.0,66638.0,0.003935]
[1718659521568,1.603934,66639.0,66638.0,0.003935]
[1718659521897,1.904058,66639.0,66638.0,0.003935]
[1718659522643,2.21556659,66639.0,66638.0,0.003935]
[1718659523046,2.21556659,66639.0,66638.0,0.001935]
[1718659523247,1.904058,66639.0,66638.0,0.001935]
[1718659523448,2.183405,66639.0,66638.0,0.000935]
[1718659523797,2.184405,66639.0,66638.0,0.000935]
[1718659524187,2.737529,66639.0,66638.0,0.000935]
[1718659524388,2.437405,66639.0,66638.0,0.000935]
[1718659524595,2.337405,66639.0,66638.0,0.000935]
[1718659525002,2.437405,66639.0,66638.0,0.000935]
[1718659525614,2.74284644,66639.0,66638.0,0.000935]
[1718659525818,2.74284644,66639.0,66638.0,0.0007698]
[1718659526028,3.09297044,66639.0,66638.0,0.0007698]
[1718659527523,3.12046313,66639.0,66638.0,0.0007698]
[1718659527716,1.660661,66634.0,66633.0,0.000935]
[1718659527923,2.39960244,66634.0,66633.0,0.000935]
[1718659528140,3.88154144,66634.0,66633.0,0.000935]
[1718659528917,3.86789144,66634.0,66633.0,0.000935]
[1718659529617,3.76789144,66634.0,66633.0,0.000935]
[1718659529973,3.67015044,66634.0,66633.0,0.001935]
[1718659530156,3.97029744,66634.0,66633.0,0.001935]
[1718659530318,4.07029744,66634.0,66633.0,0.001935]
[1718659531295,3.77715044,66634.0,66633.0,0.002935]
[1718659531517,3.67715044,66634.0,66633.0,0.002935]
[1718659531971,3.46285044,66634.0,66633.0,0.002935]
[1718659532191,3.67715044,66634.0,66633.0,0.002935]
[1718659532826,3.23965644,66634.0,66633.0,0.002935]
[1718659533641,3.21564944,66634.0,66633.0,0.002935]
[1718659535488,3.16293688,66634.0,66633.0,0.002935]
[1718659535728,3.16293688,66634.0,66624.0,0.000935]
[1718659535729,0.160093,66625.0,66624.0,0.000935]
[1718659535964,1.12749588,66625.0,66624.0,0.000935]
[1718659536219,3.43196288,66625.0,66624.0,0.000935]
[1718659536388,2.10358244,66625.0,66624.0,0.000935]
[1718659536587,2.00358244,66625.0,66624.0,0.000935]
[1718659536783,2.93495044,66625.0,66624.0,0.000935]
[1718659536969,2.63476344,66625.0,66624.0,0.004935]
[1718659537750,3.04825044,66625.0,66624.0,0.004935]
[1718659538186,3.14825044,66625.0,66624.0,0.004935]
[1718659538587,3.14825044,66625.0,66624.0,0.007935]
[1718659539215,3.04825044,66625.0,66624.0,0.007935]
[1718659539415,3.04825044,66625.0,66624.0,0.003935]
[1718659539640,3.14825044,66625.0,66624.0,0.003935]
[1718659539838,3.15225044,66625.0,66624.0,0.000935]
[1718659540307,3.15625044,66625.0,66624.0,0.000935]
[1718659541606,3.15625044,66625.0,66623.0,0.5]
[1718659541607,1.891056,66624.0,66623.0,0.39314283]
[1718659541828,2.01930544,66624.0,66623.0,0.39314283]
[1718659542033,3.97197644,66624.0,66623.0,0.39314283]
[1718659542403,4.18096043,66624.0,66623.0,0.39314283]
[1718659542820,4.6626776,66624.0,66623.0,0.39314283]
[1718659543024,4.6626776,66624.0,66623.0,0.32514283]
[1718659543226,5.2224856,66624.0,66623.0,0.32514283]
[1718659543519,5.2284856,66624.0,66623.0,0.32514283]
[1718659543719,5.228619,66624.0,66623.0,0.32514283]
[1718659543979,5.225619,66624.0,66623.0,0.32614283]
[1718659544179,5.233619,66624.0,66623.0,0.32614283]
[1718659544336,5.70106481,66624.0,66623.0,0.32114283]
[1718659544942,5.70106481,66624.0,66623.0,0.24941283]
[1718659545210,5.76490313,66624.0,66623.0,0.24941283]
[1718659545337,4.90490313,66624.0,66623.0,0.24941283]
[1718659545548,4.90490313,66624.0,66623.0,0.25034783]
[1718659546085,5.64192106,66624.0,66623.0,0.23023783]
[1718659546320,4.91192106,66624.0,66623.0,0.23023783]
[1718659547157,4.91197629,66624.0,66623.0,0.23023783]
[1718659547987,4.13289926,66624.0,66623.0,0.23023783]
[1718659548187,4.91195806,66624.0,66623.0,0.23023783]
[1718659550312,4.96698307,66624.0,66623.0,0.23023783]
[1718659550729,4.91195806,66624.0,66623.0,0.23023783]
[1718659551354,4.96698353,66624.0,66623.0,0.23023783]
[1718659551798,4.96698353,66624.0,66623.0,0.22173783]
[1718659551971,4.96698353,66624.0,66623.0,0.15080783]
[1718659554684,4.57688753,66624.0,66623.0,0.15080783]
[1718659554890,4.65688753,66624.0,66623.0,0.15080783]
[1718659555292,4.80424582,66624.0,66623.0,0.15080783]
[1718659556046,4.80362813,66624.0,66623.0,0.15080783]
[1718659561167,4.80431201,66624.0,66623.0,0.15080783]
[1718659562184,4.12900745,66624.0,66623.0,0.15080783]
[1718659562474,4.21480745,66624.0,66623.0,0.15080783]
[1718659563227,4.21490111,66624.0,66623.0,0.15080783]
[1718659566474,5.07490111,66624.0,66623.0,0.15080783]
[1718659567004,4.21490111,66624.0,66623.0,0.15080783]
[1718659567300,5.11761367,66624.0,66623.0,0.15080783]
[1718659567507,4.36761367,66624.0,66623.0,0.15080783]
[1718659568443,4.46372658,66624.0,66623.0,0.15080783]
[1718659570252,4.60162658,66624.0,66623.0,0.15080783]
[1718659570454,4.6042187,66624.0,66623.0,0.15080783]
[1718659571334,4.62769939,66624.0,66623.0,0.15080783]
[1718659573358,4.67223679,66624.0,66623.0,0.15080783]
[1718659574147,4.69450549,66624.0,66623.0,0.15080783]
[1718659575220,4.62769939,66624.0,66623.0,0.15080783]
[1718659577291,4.73904289,66624.0,66623.0,0.15080783]
[1718659577499,4.73989289,66624.0,66623.0,0.15080783]
[1718659578298,4.62854939,66624.0,66623.0,0.15080783]
[1718659579029,4.49064939,66624.0,66623.0,0.15080783]
[1718659579261,4.33793683,66624.0,66623.0,0.15080783]
[1718659579466,4.01218083,66624.0,66623.0,0.15080783]
[1718659579870,4.31237283,66624.0,66623.0,0.15080783]
[1718659580254,4.37984311,66624.0,66623.0,0.15080783]
[1718659580489,4.3091921,66624.0,66623.0,0.15080783]
[1718659580650,4.55629064,66624.0,66623.0,0.15080783]
[1718659581217,4.57878131,66624.0,66623.0,0.15080783]
[1718659581392,3.97314787,66624.0,66623.0,0.15080783]
[1718659581555,3.50238787,66624.0,66623.0,0.15080783]
[1718659581757,3.03495259,66624.0,66623.0,0.15080783]
[1718659581959,3.17402055,66624.0,66623.0,0.15080783]
[1718659582169,3.80051512,66624.0,66623.0,0.15080783]
[1718659582596,3.70639571,66624.0,66623.0,0.15080783]
[1718659582792,3.80051512,66624.0,66623.0,0.15080783]
[1718659583196,3.95322768,66624.0,66623.0,0.15080783]
[1718659583800,3.54888764,66624.0,66623.0,0.15080783]
[1718659584467,2.88045632,66624.0,66623.0,0.15080783]
[1718659584700,3.3478386,66624.0,66623.0,0.15080783]
[1718659584872,3.81522088,66624.0,66623.0,0.15881777]
[1718659585068,3.81522088,66624.0,66623.0,0.15080783]
[1718659585276,3.70270733,66624.0,66623.0,0.15080783]
[1718659585504,3.21184436,66624.0,66623.0,0.15080783]
[1718659585716,2.7679409,66624.0,66623.0,0.15080783]
[1718659585884,2.8909409,66624.0,66623.0,0.15080783]
[1718659586101,3.35832318,66624.0,66623.0,0.15080783]
[1718659586436,3.33484436,66624.0,66623.0,0.15080783]
[1718659589133,3.33326221,66624.0,66623.0,0.15080783]
[1718659590639,3.33322991,66624.0,66623.0,0.15080783]
[1718659592942,3.33322991,66624.0,66623.0,0.14780783]
[1718659593699,3.17793391,66624.0,66623.0,0.14780783]
[1718659593896,2.55659435,66624.0,66623.0,0.15581777]
[1718659594110,3.02397663,66624.0,66623.0,0.15581777]
[1718659594859,3.02406143,66624.0,66623.0,0.15581777]
[1718659595061,2.33735945,66624.0,66623.0,0.15581777]
[1718659595263,2.48745545,66624.0,66623.0,0.15581777]
[1718659595478,2.48745543,66624.0,66623.0,0.15581777]
[1718659596431,2.58281707,66624.0,66623.0,0.15581777]
[1718659596834,2.58291925,66624.0,66623.0,0.14780783]
[1718659601037,2.56634295,66624.0,66623.0,0.14780783]
[1718659601242,2.65214295,66624.0,66623.0,0.14780783]
[1718659601386,2.55678654,66624.0,66623.0,0.14780783]
[1718659601834,2.55718871,66624.0,66623.0,0.14780783]
[1718659602422,2.65287652,66624.0,66623.0,0.14780783]
[1718659603376,2.65291022,66624.0,66623.0,0.14780783]
[1718659603798,2.96449692,66624.0,66623.0,0.14780783]
[1718659606047,2.87869692,66624.0,66623.0,0.14780783]
[1718659606255,3.43187697,66624.0,66623.0,0.14780783]
[1718659606395,2.87869692,66624.0,66623.0,0.14780783]
[1718659606598,3.43187697,66624.0,66623.0,0.14780783]
[1718659606819,2.96449692,66624.0,66623.0,0.14780783]
[1718659609425,2.98797544,66624.0,66623.0,0.14780783]
[1718659609630,2.98796309,66624.0,66623.0,0.14780783]
[1718659610680,2.67637639,66624.0,66623.0,0.14780783]
[1718659610872,2.98796164,66624.0,66623.0,0.14780783]
[1718659614586,2.98799833,66624.0,66623.0,0.14780783]
[1718659616107,2.98775846,66624.0,66623.0,0.14780783]
[1718659616496,3.45513633,66624.0,66623.0,0.14780783]
[1718659616703,1.78164133,66624.0,66623.0,0.48743855]
[1718659616990,0.90168241,66624.0,66623.0,0.48743855]
[1718659617144,0.83286467,66624.0,66623.0,0.49546535]
[1718659617351,0.73256367,66624.0,66623.0,0.41953463]
[1718659617569,1.03275567,66624.0,66623.0,0.41953463]
[1718659617795,1.33294767,66624.0,66623.0,0.41953463]
[1718659618506,1.41874767,66624.0,66623.0,0.41953463]
[1718659622059,1.35119455,66624.0,66623.0,0.41953463]
[1718659622476,1.24871525,66624.0,66623.0,0.41953463]
[1718659622864,1.34951614,66624.0,66623.0,0.41953463]
[1718659623789,1.4170519,66624.0,66623.0,0.41953463]
[1718659624202,1.41702824,66624.0,66623.0,0.41953463]
[1718659625225,1.11683624,66624.0,66623.0,0.41953463]
[1718659625675,1.34949248,66624.0,66623.0,0.41953463]
[1718659625843,1.4170307,66624.0,66623.0,0.41953463]
[1718659627127,1.34949248,66624.0,66623.0,0.41953463]
[1718659627733,1.41702882,66624.0,66623.0,0.41953463]
[1718659628660,1.35374016,66624.0,66623.0,0.41953463]
[1718659628864,1.43954016,66624.0,66623.0,0.41953463]
[1718659629043,1.34949248,66624.0,66623.0,0.41953463]
[1718659629366,1.34953909,66624.0,66623.0,0.41953463]
[1718659632451,1.41706962,66624.0,66623.0,0.41953463]
[1718659634508,1.41788715,66624.0,66623.0,0.41953463]
[1718659637462,1.35036786,66624.0,66623.0,0.41953463]
[1718659638189,1.41787166,66624.0,66623.0,0.41953463]
[1718659638398,1.35036786,66624.0,66623.0,0.41953463]
[1718659638739,1.41787605,66624.0,66623.0,0.41953463]
[1718659639372,1.41787714,66624.0,66623.0,0.41953463]
[1718659644057,1.41787714,66624.0,66623.0,0.51947634]
[1718659644286,1.41787714,66624.0,66623.0,0.41953463]
[1718659644491,1.65056095,66624.0,66623.0,0.41953463]
[1718659644692,1.35036895,66624.0,66623.0,0.41953463]
[1718659646758,1.65056095,66624.0,66623.0,0.41953463]
[1718659649200,1.61169882,66624.0,66623.0,0.41953463]
[1718659649402,1.65042384,66624.0,66623.0,0.41953463]
[1718659650121,1.74041783,66624.0,66623.0,0.41953463]
[1718659651597,1.67768213,66624.0,66623.0,0.41953463]
[1718659651795,1.58768814,66624.0,66623.0,0.41953463]
[1718659652207,1.54888359,66624.0,66623.0,0.41953463]
[1718659652590,1.63887996,66624.0,66623.0,0.41953463]
[1718659653025,1.54888359,66624.0,66623.0,0.41953463]
[1718659655068,1.650287,66624.0,66623.0,0.41953463]
[1718659656297,1.67376551,66624.0,66623.0,0.41953463]
[1718659657138,1.650287,66624.0,66623.0,0.41953463]
[1718659660006,1.76276429,66624.0,66623.0,0.41953463]
[1718659660371,1.76251958,66624.0,66623.0,0.41953463]
[1718659662330,1.65004229,66624.0,66623.0,0.41953463]
[1718659664821,1.61126485,66624.0,66623.0,0.41953463]
[1718659665026,1.65006684,66624.0,66623.0,0.41953463]
[1718659666098,1.65006684,66624.0,66623.0,0.41453463]
[1718659667656,3.69887373,66624.0,66623.0,0.15083463]
[1718659667859,4.58585385,66624.0,66623.0,6.3e-07]
[1718659668046,4.58585385,66624.0,66622.0,0.5]
[1718659668047,1.357886,66623.0,66622.0,0.48623061]
[1718659668302,3.59144553,66623.0,66622.0,0.48623061]
[1718659668501,5.92285553,66623.0,66622.0,0.48623061]
[1718659669235,5.77107966,66623.0,66622.0,0.48623061]
[1718659669837,5.78007966,66623.0,66622.0,0.48723061]
[1718659670267,5.77107966,66623.0,66622.0,0.48623061]
[1718659670785,6.35507966,66623.0,66622.0,0.48723061]
[1718659671096,5.77107966,66623.0,66622.0,0.48623061]
[1718659671287,5.78507966,66623.0,66622.0,0.48723061]
[1718659671503,5.79907966,66623.0,66622.0,0.42423061]
[1718659671878,5.79907966,66623.0,66622.0,0.41123061]
[1718659672294,5.87907966,66623.0,66622.0,0.33116561]
[1718659672492,6.33907966,66623.0,66622.0,6.1e-07]
[1718659672701,5.86507966,66623.0,66622.0,6.1e-07]
[1718659672906,1.851353,66612.0,66611.0,6.1e-07]
[1718659673150,3.05854115,66612.0,66611.0,6.1e-07]
[1718659673352,3.67544466,66612.0,66611.0,6.1e-07]
[1718659674309,3.68944466,66612.0,66611.0,0.00100061]
[1718659674518,3.67996586,66612.0,66611.0,0.00200061]
[1718659675354,3.67996586,66612.0,66611.0,1e-08]
[1718659675762,6.23134549,66612.0,66611.0,1e-08]
[1718659675905,3.68059549,66612.0,66611.0,1e-08]
[1718659676259,3.79266209,66612.0,66611.0,1e-08]
[1718659677496,3.68059549,66612.0,66611.0,1e-08]
[1718659677828,4.25059549,66612.0,66611.0,1e-08]
[1718659678036,4.41266209,66612.0,66611.0,1e-08]
[1718659678268,4.30059549,66612.0,66611.0,1e-08]
[1718659679050,4.41266209,66612.0,66611.0,1e-08]
[1718659679441,4.30059549,66612.0,66611.0,1e-08]
[1718659680655,4.30038609,66612.0,66611.0,1e-08]
[1718659681637,4.30071531,66612.0,66611.0,1e-08]
[1718659681843,4.33222059,66612.0,66611.0,1e-08]
[1718659682043,4.34660046,66612.0,66611.0,1e-08]
[1718659682357,4.34660046,66612.0,66590.0,0.2491]
[1718659682358,1.05119,66591.0,66590.0,0.1379]
[1718659682559,1.57155159,66591.0,66590.0,0.1379]
[1718659682762,2.83461276,66591.0,66590.0,0.1379]
[1718659683105,2.84116219,66591.0,66590.0,0.1379]
[1718659683520,2.78779519,66591.0,66590.0,0.1379]
[1718659684474,2.63460419,66591.0,66590.0,0.1379]
[1718659684681,1.051207,66590.0,66589.0,0.009394]
[1718659684889,1.56504419,66590.0,66589.0,0.009394]
[1718659685094,2.69392219,66590.0,66589.0,0.009394]
[1718659685735,2.6937712,66590.0,66589.0,0.009394]
[1718659686053,2.81937899,66590.0,66589.0,0.009394]
[1718659686879,2.82737899,66590.0,66589.0,0.009394]
[1718659687291,2.7017712,66590.0,66589.0,0.009394]
[1718659687513,2.39020961,66590.0,66589.0,0.009394]
[1718659687725,2.7019551,66590.0,66589.0,0.009394]
[1718659687924,2.7099551,66590.0,66589.0,0.009394]
[1718659689111,2.3814211,66590.0,66589.0,0.149394]
[1718659689284,2.4568631,66590.0,66589.0,0.139394]
[1718659689470,2.25435191,66590.0,66589.0,0.139394]
[1718659689672,2.30415191,66590.0,66589.0,0.139394]
[1718659691051,2.21835191,66590.0,66589.0,0.139394]
[1718659691255,2.30415191,66590.0,66589.0,0.139394]
[1718659693568,2.30415191,66590.0,66589.0,0.255894]
[1718659694907,2.33980018,66590.0,66589.0,0.255894]
[1718659696540,2.02805469,66590.0,66589.0,0.255894]
[1718659696979,2.33980019,66590.0,66589.0,0.255894]
[1718659698308,2.64014519,66590.0,66589.0,0.139394]
[1718659698502,2.48997319,66590.0,66589.0,0.139394]
[1718659698807,2.64014519,66590.0,66589.0,0.139394]
[1718659700572,1.051239,66588.0,66587.0,0.1151]
[1718659700774,1.051239,66588.0,66586.0,0.009394]
[1718659700775,0.750895,66587.0,66586.0,0.009394]
[1718659701075,1.97428092,66587.0,66586.0,0.009394]
[1718659701281,2.21860292,66587.0,66586.0,0.009394]
[1718659701759,2.13280292,66587.0,66586.0,0.009394]
[1718659702000,2.09806295,66587.0,66586.0,0.009394]
[1718659702199,2.2226204,66587.0,66586.0,0.009394]
[1718659704271,2.2266204,66587.0,66586.0,0.009394]
[1718659704869,2.14357774,66587.0,66586.0,0.009394]
[1718659705077,2.22937774,66587.0,66586.0,0.009394]
[1718659705858,2.07919874,66587.0,66586.0,0.009394]
[1718659706038,2.22937774,66587.0,66586.0,0.009394]
[1718659706442,2.14357774,66587.0,66586.0,0.009394]
[1718659706649,2.22937774,66587.0,66586.0,0.009394]
[1718659708077,2.14357774,66587.0,66586.0,0.009394]
[1718659708288,2.22937774,66587.0,66586.0,0.009394]
[1718659708690,2.22943517,66587.0,66586.0,0.009394]
[1718659710014,2.14363517,66587.0,66586.0,0.009394]
[1718659710230,2.22943517,66587.0,66586.0,0.009394]
[1718659710377,2.22943517,66587.0,66586.0,0.12768395]
[1718659710620,1.06938217,66587.0,66586.0,0.39598395]
[1718659710818,1.06103917,66587.0,66586.0,0.39598395]
[1718659711020,1.06103917,66587.0,66586.0,0.4023832]
[1718659711021,1.36139717,66587.0,66586.0,0.4023832]
[1718659711403,1.35739717,66587.0,66586.0,0.4023832]
[1718659711867,1.35539717,66587.0,66586.0,0.4023832]
[1718659712181,1.35739717,66587.0,66586.0,0.4023832]
[1718659712710,0.60650217,66587.0,66586.0,0.4023832]
[1718659712915,0.52070217,66587.0,66586.0,0.4023832]
[1718659713328,0.52070217,66587.0,66586.0,0.5525642]